[Event "23rd ETCC Women 2021"]
[Site "Catez"]
[Date "2021.11.21"]
[Round "9.52"]
[White "Tamrazyan, Gohar"]
[Black "Varney, Zoe"]
[Result "0-1"]
[ECO "C45"]
[WhiteElo "1981"]
[BlackElo "1955"]
[Annotator "NA"]
[PlyCount "98"]
[EventDate "2021.11.08"]
[EventType "team-tourn"]
[EventCountry "SLO"]
[SourceTitle "playchess.com"]
[Source "ChessBase"]
[SourceQuality "1"]
[WhiteTeam "Switzerland"]
[BlackTeam "England"]
[WhiteTeamCountry "SUI"]
[BlackTeamCountry "ENG"]
[TimeControl "40/5400+30:1800+30"]

1. e4 {[%emt 0:00:02]} e5 {[%emt 0:00:05]} 2. Nf3 {[%emt 0:00:06]} Nc6 {
[%emt 0:00:05]} 3. d4 {[%emt 0:00:04]} exd4 {[%emt 0:00:04]} 4. Nxd4 {[%emt 0:
00:05]} Nf6 {[%emt 0:00:04]} 5. Nxc6 {[%emt 0:00:08]} bxc6 {[%emt 0:00:05]} 6.
e5 {[%emt 0:00:05]} Qe7 {[%emt 0:00:07]} 7. Qe2 {[%emt 0:00:04]} Nd5 {[%emt 0:
00:04]} 8. h4 {[%emt 0:00:05]} Qe6 {[%emt 0:00:05]} 9. Nd2 {[%emt 0:01:09]} a5
{[%emt 0:00:05]} 10. Nf3 {[%emt 0:01:11]} Ba6 {[%emt 0:00:10]} 11. c4 {[%emt 0:
00:07]} Bb4+ {[%emt 0:00:16]} 12. Bd2 {[%emt 0:00:07]} Nb6 {[%emt 0:00:17]} 13.
b3 {[%emt 0:00:20]} d5 {[%emt 0:14:55]} 14. exd6 {[%emt 0:11:54]} cxd6 {
[%emt 0:04:32]} 15. Nd4 {[%emt 0:08:07]} Qxe2+ {[%emt 0:10:06]} 16. Bxe2 {
[%emt 0:00:44]} Kd7 {[%emt 0:01:37]} 17. O-O-O {[%emt 0:05:04]} d5 {[%emt 0:12:
46]} 18. Bg4+ {[%emt 0:12:53]} Kc7 {[%emt 0:02:40]} 19. Bf4+ {[%emt 0:03:58]}
Kb7 {[%emt 0:03:56]} 20. Bf3 {[%emt 0:04:13]} Rac8 {[%emt 0:01:47]} 21. Nc2 {
[%emt 0:12:56]} dxc4 {[%emt 0:07:30]} 22. Nxb4 {[%emt 0:03:04]} axb4 {[%emt 0:
00:07]} 23. Rhe1 {[%emt 0:11:47]} Rhe8 {[%emt 0:12:48]} 24. Rxe8 {[%emt 0:02:
28]} Rxe8 {[%emt 0:00:07]} 25. Bd6 {[%emt 0:01:32]} Rd8 {[%emt 0:10:53]} 26.
Bxb4 {[%emt 0:02:10]} Rxd1+ {[%emt 0:00:35]} 27. Kxd1 {[%emt 0:03:26]} Nd5 {
[%emt 0:03:01]} 28. Bf8 {[%emt 0:02:44]} g6 {[%emt 0:04:12]} 29. Kc2 {[%emt 0:
05:32]} Nf4 {[%emt 0:05:30]} 30. Kd2 {[%emt 0:05:18]} Nd3 {[%emt 0:02:20]} 31.
Ke3 {[%emt 0:01:20]} c3 {[%emt 0:03:38]} 32. Bg7 {[%emt 0:00:47]} c2 {[%emt 0:
00:21]} 33. Bb2 {[%emt 0:00:48]} Nxb2 {[%emt 0:00:08]} 34. Kd2 {[%emt 0:00:04]}
Nd3 {[%emt 0:00:31]} 35. Kxc2 {[%emt 0:00:04]} Ne1+ {[%emt 0:00:04]} 36. Kd2 {
[%emt 0:00:29]} Nxf3+ {[%emt 0:00:05]} 37. gxf3 {[%emt 0:00:03]} c5 {[%emt 0:
00:22]} 38. Ke3 {[%emt 0:01:59]} Kc6 {[%emt 0:00:10]} 39. Kf4 {[%emt 0:01:25]}
f6 {[%emt 0:00:21]} 40. Ke4 {[%emt 0:00:54]} Bc8 {[%emt 0:01:25]} 41. f4 {
[%emt 0:02:55]} Bf5+ {[%emt 0:00:11]} 42. Ke3 {[%emt 0:00:09]} Kb5 {[%emt 0:00:
23]} 43. Kd2 {[%emt 0:04:15]} Kb4 {[%emt 0:00:15]} 44. f3 {[%emt 0:01:33]} Bb1
{[%emt 0:00:53]} 45. Ke3 {[%emt 0:01:34]} f5 {[%emt 0:00:58]} 46. a4 {[%emt 0:
00:42]} Bc2 {[%emt 0:00:42]} 47. a5 {[%emt 0:00:55]} Kxa5 {[%emt 0:00:07]} 48.
Kd2 {[%emt 0:00:12]} Bxb3 {[%emt 0:00:05]} 49. Kc3 {[%emt 0:00:02]} Bd5 {
[%emt 0:00:12]} 0-1

[Event "23rd ETCC Women 2021"]
[Site "Catez"]
[Date "2021.11.21"]
[Round "9.53"]
[White "Stojkovska, Monika"]
[Black "Ptacnikova, Lenka"]
[Result "0-1"]
[ECO "B43"]
[WhiteElo "2066"]
[BlackElo "2200"]
[Annotator "NA"]
[PlyCount "82"]
[EventDate "2021.11.08"]
[EventType "team-tourn"]
[EventCountry "SLO"]
[SourceTitle "playchess.com"]
[Source "ChessBase"]
[SourceQuality "1"]
[WhiteTeam "Macedonia"]
[BlackTeam "Iceland"]
[WhiteTeamCountry "MKD"]
[BlackTeamCountry "ISL"]
[TimeControl "40/5400+30:1800+30"]

1. e4 {[%emt 0:00:03]} c5 {[%emt 0:00:09]} 2. Nf3 {[%emt 0:00:05]} e6 {[%emt 0:
00:04]} 3. d4 {[%emt 0:00:15]} cxd4 {[%emt 0:00:04]} 4. Nxd4 {[%emt 0:00:05]}
a6 {[%emt 0:00:11]} 5. Nc3 {[%emt 0:01:03]} b5 {[%emt 0:00:06]} 6. Bd3 {
[%emt 0:01:26]} Qb6 {[%emt 0:00:10]} 7. Nb3 {[%emt 0:02:05]} Bb7 {[%emt 0:00:
46]} 8. Be3 {[%emt 0:04:24]} Qc7 {[%emt 0:00:11]} 9. f4 Nf6 {[%emt 0:06:59]}
10. Qf3 {[%emt 0:12:17]} Bb4 {[%emt 0:05:33]} 11. Bd2 {[%emt 0:08:04]} d5 {
[%emt 0:10:31]} 12. exd5 {[%emt 0:04:47]} exd5 {[%emt 0:02:58]} 13. Qe2+ {
[%emt 0:03:51]} Be7 {[%emt 0:03:25]} 14. O-O {[%emt 0:07:25]} O-O {[%emt 0:00:
36]} 15. Qe5 {[%emt 0:16:30]} Bd6 {[%emt 0:04:31]} 16. Qf5 {[%emt 0:00:27]}
Nbd7 {[%emt 0:08:35]} 17. a3 {[%emt 0:06:02]} Rfe8 {[%emt 0:05:07]} 18. Kh1 {
[%emt 0:02:21]} Nb6 {[%emt 0:07:26]} 19. Rae1 {[%emt 0:04:58]} Nc4 {[%emt 0:01:
02]} 20. Bc1 {[%emt 0:01:27]} Rad8 {[%emt 0:06:10]} 21. Nd4 {[%emt 0:01:19]}
Nxa3 {[%emt 0:17:03]} 22. Nxd5 {[%emt 0:07:34]} Bxd5 {[%emt 0:00:10]} 23. Rxe8+
{[%emt 0:00:36]} Rxe8 {[%emt 0:00:07]} 24. bxa3 {[%emt 0:00:14]} Qc3 {[%emt 0:
04:57]} 25. Ne2 {[%emt 0:00:32]} Qc6 {[%emt 0:00:34]} 26. Qh3 {[%emt 0:01:35]}
Bc5 {[%emt 0:02:20]} 27. Nc3 {[%emt 0:01:20]} Be6 {[%emt 0:02:56]} 28. Qf3 {
[%emt 0:01:29]} Qxf3 {[%emt 0:01:33]} 29. Rxf3 {[%emt 0:01:07]} Bf5 {[%emt 0:
03:31]} 30. Bd2 {[%emt 0:03:27]} Bd7 {[%emt 0:03:00]} 31. Nb1 {[%emt 0:03:18]}
Bc6 {[%emt 0:01:31]} 32. Rf1 {[%emt 0:00:17]} Ng4 {[%emt 0:01:36]} 33. h3 {
[%emt 0:02:03]} Nf2+ {[%emt 0:01:05]} 34. Kh2 {[%emt 0:00:00]} Nxd3 {[%emt 0:
00:51]} 35. cxd3 {[%emt 0:00:00]} Re2 {[%emt 0:00:22]} 36. h4 {[%emt 0:01:49]}
Rxg2+ {[%emt 0:01:08]} 37. Kh3 {[%emt 0:00:04]} Rg6 {[%emt 0:00:44]} 38. Rc1 {
[%emt 0:00:20]} Bg1 {[%emt 0:00:36]} 39. Rxc6 {[%emt 0:01:57]} Rxc6 {[%emt 0:
00:05]} 40. Nc3 {[%emt 0:00:04]} Bc5 {[%emt 0:00:20]} 41. Nd5 {[%emt 0:30:09]}
Rd6 {[%emt 0:30:36]} 0-1

[Event "23rd ETCC Women 2021"]
[Site "Catez"]
[Date "2021.11.21"]
[Round "9.54"]
[White "Johannsdottir, Johanna Bjorg"]
[Black "Bejatovic, Bojana"]
[Result "1/2-1/2"]
[ECO "B40"]
[WhiteElo "1952"]
[BlackElo "2031"]
[Annotator "NA"]
[PlyCount "84"]
[EventDate "2021.11.08"]
[EventType "team-tourn"]
[EventCountry "SLO"]
[SourceTitle "playchess.com"]
[Source "ChessBase"]
[SourceQuality "1"]
[WhiteTeam "Iceland"]
[BlackTeam "Macedonia"]
[WhiteTeamCountry "ISL"]
[BlackTeamCountry "MKD"]
[TimeControl "40/5400+30:1800+30"]

1. e4 {[%emt 0:00:04]} c5 {[%emt 0:00:09]} 2. Nf3 {[%emt 0:00:05]} e6 {[%emt 0:
00:03]} 3. g3 {[%emt 0:00:08]} d5 {[%emt 0:01:26]} 4. exd5 {[%emt 0:00:10]}
exd5 {[%emt 0:00:09]} 5. d4 {[%emt 0:00:09]} Nc6 {[%emt 0:02:58]} 6. Bg2 {
[%emt 0:00:41]} Nf6 {[%emt 0:03:14]} 7. O-O {[%emt 0:01:02]} Be7 {[%emt 0:00:
02]} 8. dxc5 {[%emt 0:01:13]} Bxc5 {[%emt 0:04:50]} 9. Bg5 {[%emt 0:01:46]} Be6
{[%emt 0:11:38]} 10. Nc3 {[%emt 0:02:57]} d4 {[%emt 0:08:55]} 11. Ne4 {[%emt 0:
10:50]} Be7 {[%emt 0:00:06]} 12. Nxf6+ {[%emt 0:00:57]} Bxf6 {[%emt 0:00:16]}
13. Bxf6 {[%emt 0:00:19]} Qxf6 {[%emt 0:00:18]} 14. Qd3 {[%emt 0:05:19]} O-O {
[%emt 0:03:48]} 15. Qb5 {[%emt 0:02:48]} Rab8 {[%emt 0:05:24]} 16. Rfe1 {
[%emt 0:07:06]} Rfc8 {[%emt 0:08:14]} 17. Nd2 {[%emt 0:04:44]} Qf5 {[%emt 0:13:
16]} 18. Qxf5 {[%emt 0:05:19]} Bxf5 {[%emt 0:00:02]} 19. Nb3 {[%emt 0:04:35]}
Bxc2 {[%emt 0:03:50]} 20. Bxc6 {[%emt 0:01:13]} Bxb3 {[%emt 0:06:02]} 21. Bxb7
{[%emt 0:02:57]} Rxb7 {[%emt 0:00:07]} 22. axb3 {[%emt 0:00:05]} d3 {[%emt 0:
05:14]} 23. Kg2 {[%emt 0:08:54]} g6 {[%emt 0:04:40]} 24. Red1 {[%emt 0:01:22]}
Rxb3 {[%emt 0:01:46]} 25. Rxa7 {[%emt 0:00:34]} Rc2 {[%emt 0:00:35]} 26. Ra2 {
[%emt 0:02:54]} Kg7 {[%emt 0:02:07]} 27. Kf3 {[%emt 0:01:28]} Kf6 {[%emt 0:04:
00]} 28. Ke3 {[%emt 0:01:09]} d2+ {[%emt 0:01:39]} 29. Ke2 {[%emt 0:00:09]}
Rbxb2 {[%emt 0:00:18]} 30. Rxb2 {[%emt 0:00:06]} Rxb2 {[%emt 0:00:03]} 31. Rxd2
{[%emt 0:00:54]} Rxd2+ {[%emt 0:00:05]} 32. Kxd2 {[%emt 0:00:14]} Kf5 {[%emt 0:
00:01]} 33. Ke3 {[%emt 0:01:00]} Kg4 {[%emt 0:01:07]} 34. h4 {[%emt 0:09:01]}
f5 {[%emt 0:00:14]} 35. Ke2 {[%emt 0:02:48]} f4 {[%emt 0:04:57]} 36. gxf4 {
[%emt 0:00:53]} Kxh4 {[%emt 0:01:04]} 37. Kf3 {[%emt 0:01:14]} Kh3 {[%emt 0:01:
27]} 38. f5 {[%emt 0:00:38]} gxf5 {[%emt 0:00:01]} 39. Kf4 {[%emt 0:00:07]} Kg2
{[%emt 0:00:04]} 40. Kxf5 {[%emt 0:00:16]} h5 {[%emt 0:00:40]} 41. Kg5 {
[%emt 0:30:05]} h4 {[%emt 0:30:05]} 42. Kxh4 {[%emt 0:00:04]} Kxf2 {[%emt 0:00:
02]} 1/2-1/2

[Event "23rd ETCC Women 2021"]
[Site "Catez"]
[Date "2021.11.21"]
[Round "9.55"]
[White "Nikolovska, Dragana"]
[Black "Acevedo Mendez, Lisseth"]
[Result "1-0"]
[ECO "B22"]
[WhiteElo "1877"]
[BlackElo "1803"]
[Annotator "NA"]
[PlyCount "91"]
[EventDate "2021.11.08"]
[EventType "team-tourn"]
[EventCountry "SLO"]
[SourceTitle "playchess.com"]
[Source "ChessBase"]
[SourceQuality "1"]
[WhiteTeam "Macedonia"]
[BlackTeam "Iceland"]
[WhiteTeamCountry "MKD"]
[BlackTeamCountry "ISL"]
[TimeControl "40/5400+30:1800+30"]

1. e4 {[%emt 0:00:04]} c5 {[%emt 0:00:12]} 2. c3 {[%emt 0:00:41]} Nf6 {[%emt 0:
00:46]} 3. e5 {[%emt 0:00:12]} Nd5 {[%emt 0:00:05]} 4. d4 {[%emt 0:00:06]} cxd4
{[%emt 0:00:11]} 5. Nf3 {[%emt 0:00:14]} Nc6 {[%emt 0:00:36]} 6. cxd4 {[%emt 0:
00:17]} d6 {[%emt 0:00:29]} 7. Bc4 {[%emt 0:02:09]} dxe5 {[%emt 0:00:31]} 8.
Nxe5 {[%emt 0:11:54]} e6 {[%emt 0:24:19]} 9. O-O {[%emt 0:09:23]} Qc7 {[%emt 0:
07:34]} 10. Bxd5 {[%emt 0:12:36]} exd5 {[%emt 0:00:10]} 11. Re1 {[%emt 0:00:37]
} Be6 {[%emt 0:00:16]} 12. Bf4 {[%emt 0:02:47]} Qb6 {[%emt 0:15:41]} 13. Nxc6 {
[%emt 0:26:40]} Qxc6 {[%emt 0:00:21]} 14. Nc3 {[%emt 0:01:48]} Bb4 {[%emt 0:01:
26]} 15. Rc1 {[%emt 0:00:59]} O-O {[%emt 0:03:09]} 16. Qf3 {[%emt 0:04:26]} Qd7
{[%emt 0:03:09]} 17. Qg3 {[%emt 0:01:00]} Rfe8 {[%emt 0:03:25]} 18. Bh6 {
[%emt 0:04:18]} Bf8 {[%emt 0:01:02]} 19. Bf4 {[%emt 0:04:36]} Rac8 {[%emt 0:01:
14]} 20. Be5 {[%emt 0:04:35]} g6 {[%emt 0:01:45]} 21. Ne2 {[%emt 0:00:34]} Rxc1
{[%emt 0:00:47]} 22. Rxc1 {[%emt 0:00:12]} Rc8 {[%emt 0:00:15]} 23. Rxc8 {
[%emt 0:01:50]} Qxc8 {[%emt 0:00:05]} 24. h4 {[%emt 0:00:44]} h5 {[%emt 0:06:
36]} 25. Nf4 {[%emt 0:00:56]} Kh7 {[%emt 0:00:23]} 26. Qg5 {[%emt 0:02:10]} Bh6
{[%emt 0:07:15]} 27. Qf6 {[%emt 0:00:08]} Qg8 {[%emt 0:00:11]} 28. Nxe6 {
[%emt 0:02:15]} fxe6 {[%emt 0:00:05]} 29. Qe7+ {[%emt 0:00:04]} Bg7 {[%emt 0:
00:19]} 30. Qxb7 {[%emt 0:00:23]} Kh8 {[%emt 0:08:11]} 31. Qxa7 {[%emt 0:02:46]
} Bxe5 {[%emt 0:00:20]} 32. dxe5 {[%emt 0:00:01]} Qc8 {[%emt 0:00:06]} 33. Qd4
{[%emt 0:00:53]} Qc2 {[%emt 0:01:44]} 34. a4 {[%emt 0:00:24]} Qb3 {[%emt 0:02:
24]} 35. a5 {[%emt 0:00:38]} Qa2 {[%emt 0:03:15]} 36. b4 {[%emt 0:01:05]} Kg8 {
[%emt 0:00:19]} 37. Qc3 {[%emt 0:01:07]} Qa4 {[%emt 0:00:55]} 38. g3 {[%emt 0:
02:26]} Kf7 {[%emt 0:01:41]} 39. Qc7+ {[%emt 0:00:31]} Ke8 {[%emt 0:00:30]} 40.
Qb6 {[%emt 0:00:42]} Qa1+ {[%emt 0:04:18]} 41. Kh2 {[%emt 0:30:49]} Qxe5 {
[%emt 0:30:06]} 42. a6 {[%emt 0:00:22]} Qa1 {[%emt 0:01:04]} 43. a7 {[%emt 0:
00:19]} Qa2 {[%emt 0:00:06]} 44. Qxe6+ {[%emt 0:00:00]} Kf8 {[%emt 0:00:00]}
45. Qf6+ {[%emt 0:00:00]} Ke8 {[%emt 0:00:00]} 46. a8=Q+ {[%emt 0:00:00]} 1-0

[Event "23rd ETCC Women 2021"]
[Site "Catez"]
[Date "2021.11.21"]
[Round "9.56"]
[White "Hauksdottir, Hrund"]
[Black "Manova, Ivana"]
[Result "1-0"]
[ECO "C54"]
[WhiteElo "1731"]
[BlackElo "1809"]
[Annotator "NA"]
[PlyCount "89"]
[EventDate "2021.11.08"]
[EventType "team-tourn"]
[EventCountry "SLO"]
[SourceTitle "playchess.com"]
[Source "ChessBase"]
[SourceQuality "1"]
[WhiteTeam "Iceland"]
[BlackTeam "Macedonia"]
[WhiteTeamCountry "ISL"]
[BlackTeamCountry "MKD"]
[TimeControl "40/5400+30:1800+30"]

1. e4 {[%emt 0:00:03]} e5 {[%emt 0:00:18]} 2. Nf3 {[%emt 0:00:11]} Nc6 {
[%emt 0:00:16]} 3. Bc4 {[%emt 0:00:14]} Bc5 {[%emt 0:00:27]} 4. O-O {[%emt 0:
00:39]} Nf6 {[%emt 0:01:02]} 5. d3 {[%emt 0:00:10]} d6 {[%emt 0:01:00]} 6. c3 {
[%emt 0:00:23]} O-O {[%emt 0:01:53]} 7. a4 {[%emt 0:04:12]} a5 {[%emt 0:01:03]}
8. Re1 h6 {[%emt 0:00:30]} 9. h3 {[%emt 0:08:49]} Be6 {[%emt 0:00:30]} 10. Nbd2
{[%emt 0:00:30]} Re8 {[%emt 0:00:30]} 11. Bxe6 {[%emt 0:00:30]} Rxe6 {[%emt 0:
00:30]} 12. Nf1 {[%emt 0:16:19]} d5 {[%emt 0:14:05]} 13. Qc2 {[%emt 0:03:18]}
d4 {[%emt 0:13:20]} 14. Ng3 {[%emt 0:11:36]} Qd7 {[%emt 0:07:34]} 15. Nf5 {
[%emt 0:08:34]} dxc3 {[%emt 0:01:49]} 16. bxc3 {[%emt 0:00:26]} Rd8 {[%emt 0:
01:06]} 17. Be3 {[%emt 0:04:20]} Bxe3 {[%emt 0:04:57]} 18. Rxe3 {[%emt 0:00:13]
} g6 {[%emt 0:02:32]} 19. Nxh6+ {[%emt 0:05:26]} Kg7 {[%emt 0:00:18]} 20. Nxf7
{[%emt 0:01:02]} Qxf7 {[%emt 0:01:47]} 21. Ng5 {[%emt 0:00:07]} Qe7 {[%emt 0:
00:53]} 22. Nxe6+ {[%emt 0:00:08]} Qxe6 {[%emt 0:00:02]} 23. Rd1 {[%emt 0:02:
16]} Nh5 {[%emt 0:03:13]} 24. d4 {[%emt 0:01:40]} Nf4 {[%emt 0:01:20]} 25. d5 {
[%emt 0:04:11]} Qd7 {[%emt 0:01:29]} 26. Rb1 {[%emt 0:00:35]} Ne7 {[%emt 0:00:
34]} 27. Rxb7 {[%emt 0:00:26]} g5 {[%emt 0:04:05]} 28. c4 {[%emt 0:01:58]} Kf6
{[%emt 0:03:02]} 29. c5 {[%emt 0:04:09]} Qc8 {[%emt 0:00:50]} 30. Rb5 {[%emt 0:
04:29]} g4 {[%emt 0:00:44]} 31. h4 {[%emt 0:00:44]} c6 {[%emt 0:03:03]} 32. Rb6
{[%emt 0:01:29]} Nexd5 {[%emt 0:01:40]} 33. exd5 {[%emt 0:02:25]} Nxd5 {
[%emt 0:00:05]} 34. Reb3 {[%emt 0:03:48]} Nxb6 {[%emt 0:02:56]} 35. cxb6 {
[%emt 0:00:12]} Qb7 {[%emt 0:01:36]} 36. Qc1 {[%emt 0:01:48]} Rd4 {[%emt 0:05:
24]} 37. Qg5+ {[%emt 0:04:44]} Ke6 {[%emt 0:00:31]} 38. Qg8+ {[%emt 0:01:12]}
Kf5 {[%emt 0:02:50]} 39. h5 {[%emt 0:01:11]} Rd6 {[%emt 0:03:23]} 40. f3 {
[%emt 0:01:18]} e4 {[%emt 0:04:23]} 41. Qxg4+ {[%emt 0:31:08]} Kf6 {[%emt 0:30:
28]} 42. Qg6+ {[%emt 0:00:25]} Ke5 {[%emt 0:00:14]} 43. Qxe4+ {[%emt 0:00:07]}
Kf6 {[%emt 0:00:09]} 44. Qg6+ {[%emt 0:00:25]} Ke5 {[%emt 0:00:56]} 45. f4+ {
[%emt 0:00:46]} 1-0

[Event "23rd ETCC Women 2021"]
[Site "Catez"]
[Date "2021.11.21"]
[Round "9.57"]
[White "Goossens, Hanne"]
[Black "Dolzhikova, Olga"]
[Result "1/2-1/2"]
[ECO "B15"]
[WhiteElo "2126"]
[BlackElo "2187"]
[Annotator "NA"]
[PlyCount "99"]
[EventDate "2021.11.08"]
[EventType "team-tourn"]
[EventCountry "SLO"]
[SourceTitle "playchess.com"]
[Source "ChessBase"]
[SourceQuality "1"]
[WhiteTeam "Belgium"]
[BlackTeam "Norway"]
[WhiteTeamCountry "BEL"]
[BlackTeamCountry "NOR"]
[TimeControl "40/5400+30:1800+30"]

1. e4 {[%emt 0:00:03]} g6 {[%emt 0:00:08]} 2. d4 {[%emt 0:00:07]} Bg7 {[%emt 0:
00:03]} 3. Nc3 {[%emt 0:00:10]} c6 {[%emt 0:00:05]} 4. h3 {[%emt 0:00:20]} d5 {
[%emt 0:00:04]} 5. Nf3 {[%emt 0:00:13]} Nf6 {[%emt 0:00:06]} 6. e5 {[%emt 0:00:
49]} Ne4 {[%emt 0:00:33]} 7. Nxe4 {[%emt 0:00:24]} dxe4 {[%emt 0:00:04]} 8. Ng5
{[%emt 0:00:22]} c5 {[%emt 0:00:28]} 9. dxc5 {[%emt 0:00:52]} Qxd1+ {[%emt 0:
12:00]} 10. Kxd1 {[%emt 0:00:07]} Bxe5 {[%emt 0:00:50]} 11. Nxe4 {[%emt 0:00:
17]} Be6 {[%emt 0:09:03]} 12. Bd3 {[%emt 0:07:01]} Nc6 {[%emt 0:07:16]} 13. c3
{[%emt 0:06:07]} O-O-O {[%emt 0:05:39]} 14. Kc2 {[%emt 0:06:22]} f5 {[%emt 0:
10:14]} 15. Ng5 {[%emt 0:01:56]} Bd5 {[%emt 0:01:59]} 16. Re1 {[%emt 0:08:23]}
Bf6 {[%emt 0:08:27]} 17. Ne6 {[%emt 0:22:31]} Rd7 {[%emt 0:12:28]} 18. f3 Ne5 {
[%emt 0:00:00]} 19. Nf4 Nxd3 {[%emt 0:00:00]} 20. Nxd3 {[%emt 0:01:30]} Bc4 {
[%emt 0:07:21]} 21. Ne5 {[%emt 0:23:38]} Bxe5 {[%emt 0:00:07]} 22. Rxe5 {
[%emt 0:00:05]} Bf1 {[%emt 0:00:06]} 23. Bg5 {[%emt 0:04:32]} Bxg2 {[%emt 0:00:
29]} 24. Re3 {[%emt 0:01:07]} Rhd8 {[%emt 0:06:23]} 25. Rae1 {[%emt 0:05:19]}
Rd2+ {[%emt 0:01:00]} 26. Kc1 {[%emt 0:00:32]} R2d3 {[%emt 0:08:26]} 27. f4 {
[%emt 0:04:56]} R8d7 {[%emt 0:02:42]} 28. Bxe7 {[%emt 0:01:44]} Rxe3 {[%emt 0:
04:47]} 29. Rxe3 {[%emt 0:00:06]} Bxh3 {[%emt 0:00:28]} 30. Bd6 {[%emt 0:01:40]
} Bg2 {[%emt 0:01:11]} 31. Re8+ {[%emt 0:00:35]} Rd8 {[%emt 0:00:04]} 32. Re7 {
[%emt 0:00:14]} Rd7 {[%emt 0:00:36]} 33. Re8+ {[%emt 0:00:54]} Rd8 {[%emt 0:00:
05]} 34. Re7 {[%emt 0:01:05]} Rd7 {[%emt 0:00:09]} 35. Re6 {[%emt 0:02:41]} Rf7
{[%emt 0:01:21]} 36. b3 {[%emt 0:00:50]} Kd7 {[%emt 0:01:01]} 37. Re5 {[%emt 0:
00:24]} Be4 {[%emt 0:00:22]} 38. Kd2 {[%emt 0:00:49]} h5 {[%emt 0:00:08]} 39.
Ke1 {[%emt 0:00:22]} h4 {[%emt 0:02:51]} 40. Kf2 {[%emt 0:00:05]} Rg7 {[%emt 0:
00:33]} 41. c4 {[%emt 0:19:38]} g5 {[%emt 0:01:18]} 42. fxg5 {[%emt 0:00:00]}
Rxg5 {[%emt 0:02:08]} 43. Re7+ {[%emt 0:00:00]} Kd8 {[%emt 0:01:21]} 44. Rh7 {
[%emt 0:00:00]} Rg2+ {[%emt 0:05:12]} 45. Ke3 {[%emt 0:03:44]} Rxa2 {[%emt 0:
02:37]} 46. Rxh4 {[%emt 0:01:53]} Kd7 {[%emt 0:03:20]} 47. Kd4 {[%emt 0:01:23]}
Ke6 {[%emt 0:00:49]} 48. Rh6+ {[%emt 0:00:00]} Kf7 {[%emt 0:00:19]} 49. Rh3 {
[%emt 0:03:19]} Kf6 {[%emt 0:01:33]} 50. Bf4 {[%emt 0:01:12]} 1/2-1/2

[Event "23rd ETCC Women 2021"]
[Site "Catez"]
[Date "2021.11.21"]
[Round "9.58"]
[White "Machlik, Monika"]
[Black "Barbier, Wiebke"]
[Result "1-0"]
[ECO "A41"]
[WhiteElo "2096"]
[BlackElo "1964"]
[Annotator "NA"]
[PlyCount "55"]
[EventDate "2021.11.08"]
[EventType "team-tourn"]
[EventCountry "SLO"]
[SourceTitle "playchess.com"]
[Source "ChessBase"]
[SourceQuality "1"]
[WhiteTeam "Norway"]
[BlackTeam "Belgium"]
[WhiteTeamCountry "NOR"]
[BlackTeamCountry "BEL"]
[TimeControl "40/5400+30:1800+30"]

1. d4 {[%emt 0:00:02]} d6 {[%emt 0:00:03]} 2. Nf3 {[%emt 0:00:17]} Bg4 {
[%emt 0:00:28]} 3. e4 {[%emt 0:00:20]} Nf6 {[%emt 0:00:39]} 4. Nc3 {[%emt 0:00:
25]} e6 {[%emt 0:00:43]} 5. h3 {[%emt 0:00:53]} Bh5 {[%emt 0:00:15]} 6. Qe2 {
[%emt 0:00:58]} c6 {[%emt 0:05:57]} 7. g4 {[%emt 0:01:15]} Bg6 {[%emt 0:03:49]}
8. h4 {[%emt 0:00:45]} h5 {[%emt 0:03:44]} 9. g5 {[%emt 0:00:48]} Nfd7 {
[%emt 0:00:29]} 10. Bh3 {[%emt 0:01:37]} Be7 {[%emt 0:05:05]} 11. O-O {[%emt 0:
01:47]} d5 {[%emt 0:05:30]} 12. Re1 {[%emt 0:18:47]} dxe4 {[%emt 0:12:05]} 13.
Nxe4 {[%emt 0:00:07]} O-O {[%emt 0:02:54]} 14. Bf4 {[%emt 0:08:07]} Nb6 {
[%emt 0:07:42]} 15. Bh2 {[%emt 0:13:27]} Na6 {[%emt 0:10:07]} 16. a3 {[%emt 0:
11:17]} Nc7 {[%emt 0:03:56]} 17. Ne5 {[%emt 0:02:53]} Bxe4 {[%emt 0:05:13]} 18.
Qxe4 {[%emt 0:00:04]} Nb5 {[%emt 0:01:26]} 19. Nxf7 {[%emt 0:13:30]} Qxd4 {
[%emt 0:15:17]} 20. Bxe6 {[%emt 0:05:20]} Qxe4 {[%emt 0:04:28]} 21. Rxe4 {
[%emt 0:00:16]} g6 {[%emt 0:03:42]} 22. a4 {[%emt 0:03:08]} Nc3 {[%emt 0:03:04]
} 23. Nh6+ {[%emt 0:02:56]} Kh7 {[%emt 0:00:55]} 24. bxc3 {[%emt 0:00:36]} Bc5
{[%emt 0:00:51]} 25. Bg3 {[%emt 0:01:44]} Rae8 {[%emt 0:01:22]} 26. Rd1 {
[%emt 0:04:28]} Nxa4 {[%emt 0:01:23]} 27. Rd7+ {[%emt 0:01:09]} Kh8 {[%emt 0:
00:28]} 28. Be5+ {[%emt 0:02:29]} 1-0